[Event "Titled Tuesday Blitz July 6 2021"]
[White "Shahade, Gregory"]
[Black "Yi, Richard"]
[WhiteFideId "2009064"]
[BlackFideId "2079518"]
[WhiteElo "2735"]
[BlackElo "2528"]
[Result "1-0"]
[Round "05"]
[TimeControl "180+1"]
[Date "2021.07.06"]
[WhiteClock "0:00:21"]
[BlackClock "0:00:01"]

1. e4 {[%clk 0:03:00]}  e5 {[%clk 0:02:59]} 2. Nf3 {[%clk 0:03:01]}  Nc6 {[%clk 0:03:00]} 3. Bb5 {[%clk 0:03:01]}  Nf6 {[%clk 0:03:00]} 4. d3 {[%clk 0:03:00]}  Bc5 {[%clk 0:03:00]} 5. O-O {[%clk 0:02:59]}  Nd4 {[%clk 0:03:00]} 6. Nxd4 {[%clk 0:02:59]}  Bxd4 {[%clk 0:03:01]} 7. c3 {[%clk 0:03:00]}  Bb6 {[%clk 0:03:01]} 8. Ba4 {[%clk 0:02:59]}  O-O {[%clk 0:03:01]} 9. Bg5 {[%clk 0:02:58]}  h6 {[%clk 0:03:01]} 10. Bh4 {[%clk 0:02:59]}  c6 {[%clk 0:02:38]} 11. Nd2 {[%clk 0:02:50]}  Qe7 {[%clk 0:02:35]} 12. Nc4 {[%clk 0:02:46]}  Bc7 {[%clk 0:02:35]} 13. Ne3 {[%clk 0:02:46]}  Qe6 {[%clk 0:02:26]} 14. Bb3 {[%clk 0:02:42]}  Qe7 {[%clk 0:02:16]} 15. Nf5 {[%clk 0:02:33]}  Qd8 {[%clk 0:02:15]} 16. Qf3 {[%clk 0:02:31]}  Kh7 {[%clk 0:02:12]} 17. d4 {[%clk 0:01:50]}  d5 {[%clk 0:01:48]} 18. dxe5 {[%clk 0:01:41]}  Bxe5 {[%clk 0:01:23]} 19. exd5 {[%clk 0:01:39]}  g5 {[%clk 0:01:09]} 20. Bg3 {[%clk 0:01:28]}  Bxg3 {[%clk 0:01:07]} 21. fxg3 {[%clk 0:01:19]}  Nxd5 {[%clk 0:01:07]} 22. Qh5 {[%clk 0:01:07]}  Qf6 {[%clk 0:01:02]} 23. Bc2 {[%clk 0:00:58]}  Qg6 {[%clk 0:00:47]} 24. Ne7 {[%clk 0:00:40]}  Nxe7 {[%clk 0:00:27]} 25. Bxg6+ {[%clk 0:00:39]}  fxg6 {[%clk 0:00:28]} 26. Rxf8 {[%clk 0:00:29]}  gxh5 {[%clk 0:00:27]} 27. Rf7+ {[%clk 0:00:30]}  Kg6 {[%clk 0:00:27]} 28. Rxe7 {[%clk 0:00:30]}  Bf5 {[%clk 0:00:20]} 29. Rxb7 {[%clk 0:00:28]}  Rd8 {[%clk 0:00:20]} 30. Rxa7 {[%clk 0:00:26]}  Rd2 {[%clk 0:00:20]} 31. Re7 {[%clk 0:00:25]}  Rxb2 {[%clk 0:00:18]} 32. a4 {[%clk 0:00:25]}  Kf6 {[%clk 0:00:11]} 33. Re3 {[%clk 0:00:25]}  Be6 {[%clk 0:00:08]} 34. Rf1+ {[%clk 0:00:22]}  Bf5 {[%clk 0:00:01]} 35. Ref3 {[%clk 0:00:21]} 1-0


[Site "https://www.chess.com"]

[Event "Titled Tuesday Blitz July 6 2021"]
[White "Shtyka, Sergey"]
[Black "Solon, Nathan"]
[WhiteFideId "4138465"]
[BlackFideId "2017229"]
[WhiteElo "2064"]
[BlackElo "2622"]
[Result "0-1"]
[Round "05"]
[TimeControl "180+1"]
[Date "2021.07.06"]
[WhiteClock "0:00:02"]
[BlackClock "0:00:34"]

1. e4 {[%clk 0:03:00]}  c5 {[%clk 0:02:58]} 2. Nf3 {[%clk 0:03:01]}  d6 {[%clk 0:02:58]} 3. d4 {[%clk 0:03:01]}  cxd4 {[%clk 0:02:59]} 4. Nxd4 {[%clk 0:03:01]}  Nf6 {[%clk 0:02:59]} 5. Nc3 {[%clk 0:03:02]}  a6 {[%clk 0:02:59]} 6. Bc4 {[%clk 0:03:01]}  e6 {[%clk 0:02:59]} 7. O-O {[%clk 0:03:01]}  b5 {[%clk 0:02:58]} 8. Bd3 {[%clk 0:03:00]}  Be7 {[%clk 0:02:55]} 9. a3 {[%clk 0:03:00]}  O-O {[%clk 0:02:54]} 10. Be3 {[%clk 0:03:00]}  Bb7 {[%clk 0:02:52]} 11. f4 {[%clk 0:02:58]}  Nbd7 {[%clk 0:02:49]} 12. Qf3 {[%clk 0:02:57]}  Rc8 {[%clk 0:02:45]} 13. Rae1 {[%clk 0:02:56]}  Nc5 {[%clk 0:02:40]} 14. Bf2 {[%clk 0:02:52]}  Re8 {[%clk 0:02:34]} 15. Qh3 {[%clk 0:02:51]}  e5 {[%clk 0:02:15]} 16. fxe5 {[%clk 0:02:46]}  dxe5 {[%clk 0:02:16]} 17. Nf5 {[%clk 0:02:46]}  Bf8 {[%clk 0:02:06]} 18. Bh4 {[%clk 0:02:23]}  Qb6 {[%clk 0:02:02]} 19. Kh1 {[%clk 0:02:20]}  Nfd7 {[%clk 0:01:55]} 20. Nd5 {[%clk 0:01:32]}  Bxd5 {[%clk 0:01:54]} 21. exd5 {[%clk 0:01:33]}  g6 {[%clk 0:01:49]} 22. Ne3 {[%clk 0:01:17]}  Nxd3 {[%clk 0:01:45]} 23. cxd3 {[%clk 0:01:15]}  Nc5 {[%clk 0:01:44]} 24. Ng4 {[%clk 0:01:11]}  f5 {[%clk 0:01:25]} 25. Nf6+ {[%clk 0:01:01]}  Kg7 {[%clk 0:01:25]} 26. Nxe8+ {[%clk 0:00:59]}  Rxe8 {[%clk 0:01:26]} 27. d4 {[%clk 0:00:56]}  Ne4 {[%clk 0:01:21]} 28. dxe5 {[%clk 0:00:55]}  Rxe5 {[%clk 0:01:16]} 29. Rd1 {[%clk 0:00:48]}  Bd6 {[%clk 0:01:11]} 30. Be1 {[%clk 0:00:46]}  Kg8 {[%clk 0:01:02]} 31. Bc3 {[%clk 0:00:43]}  Re8 {[%clk 0:01:02]} 32. Qf3 {[%clk 0:00:40]}  Qc7 {[%clk 0:00:57]} 33. Rc1 {[%clk 0:00:37]}  Bxh2 {[%clk 0:00:52]} 34. Rfd1 {[%clk 0:00:04]}  Bf4 {[%clk 0:00:39]} 35. Rb1 {[%clk 0:00:03]}  Ng3+ {[%clk 0:00:36]} 36. Kg1 {[%clk 0:00:04]}  Be3+ {[%clk 0:00:36]} 37. Kh2 {[%clk 0:00:03]}  Nf1+ {[%clk 0:00:35]} 38. Kh3 {[%clk 0:00:02]}  Qh2# {[%clk 0:00:34]} 0-1


[Site "https://www.chess.com"]

[Event "Titled Tuesday Blitz July 6 2021"]
[White "Sokolin, Leonid"]
[Black "Mirzoev, Azer"]
[WhiteFideId "2009161"]
[BlackFideId "13400304"]
[WhiteElo "2394"]
[BlackElo "2525"]
[Result "0-1"]
[Round "05"]
[TimeControl "180+1"]
[Date "2021.07.06"]
[WhiteClock "0:00:02"]
[BlackClock "0:00:34"]

1. d4 {[%clk 0:02:49]}  c6 {[%clk 0:03:00]} 2. e4 {[%clk 0:02:48]}  d5 {[%clk 0:03:01]} 3. exd5 {[%clk 0:02:48]}  cxd5 {[%clk 0:03:01]} 4. Bd3 {[%clk 0:02:48]}  Nf6 {[%clk 0:03:01]} 5. c3 {[%clk 0:02:48]}  Nc6 {[%clk 0:03:02]} 6. Bf4 {[%clk 0:02:48]}  Bg4 {[%clk 0:03:01]} 7. Qb3 {[%clk 0:02:48]}  Qc8 {[%clk 0:03:01]} 8. Nd2 {[%clk 0:02:47]}  e6 {[%clk 0:03:01]} 9. Ngf3 {[%clk 0:02:47]}  Bh5 {[%clk 0:03:02]} 10. Ne5 {[%clk 0:02:47]}  Nxe5 {[%clk 0:03:01]} 11. Bxe5 {[%clk 0:02:25]}  Bg6 {[%clk 0:02:55]} 12. Bb5+ {[%clk 0:02:13]}  Nd7 {[%clk 0:02:54]} 13. c4 {[%clk 0:02:12]}  a6 {[%clk 0:02:53]} 14. Ba4 {[%clk 0:01:48]}  dxc4 {[%clk 0:02:32]} 15. Bxd7+ {[%clk 0:01:47]}  Qxd7 {[%clk 0:02:32]} 16. Nxc4 {[%clk 0:01:47]}  Qb5 {[%clk 0:02:22]} 17. O-O {[%clk 0:01:32]}  f6 {[%clk 0:02:15]} 18. Nb6 {[%clk 0:01:25]}  Qxb3 {[%clk 0:02:14]} 19. axb3 {[%clk 0:01:25]}  Rd8 {[%clk 0:02:15]} 20. Bc7 {[%clk 0:01:20]}  Rxd4 {[%clk 0:02:15]} 21. Rfd1 {[%clk 0:01:18]}  e5 {[%clk 0:02:06]} 22. f4 {[%clk 0:01:07]}  Bc5 {[%clk 0:02:04]} 23. Kh1 {[%clk 0:01:06]}  exf4 {[%clk 0:01:49]} 24. Rxd4 {[%clk 0:01:02]}  Bxd4 {[%clk 0:01:49]} 25. Re1+ {[%clk 0:00:45]}  Kf7 {[%clk 0:01:47]} 26. Nc4 {[%clk 0:00:46]}  Bc5 {[%clk 0:01:27]} 27. Bd6 {[%clk 0:00:43]}  Be3 {[%clk 0:01:20]} 28. Nxe3 {[%clk 0:00:35]}  fxe3 {[%clk 0:01:20]} 29. Rxe3 {[%clk 0:00:35]}  Rd8 {[%clk 0:01:21]} 30. Re7+ {[%clk 0:00:30]}  Kg8 {[%clk 0:01:20]} 31. Bb4 {[%clk 0:00:29]}  Rd1+ {[%clk 0:01:19]} 32. Re1 {[%clk 0:00:29]}  Rd3 {[%clk 0:01:13]} 33. Bc3 {[%clk 0:00:25]}  Kf7 {[%clk 0:01:08]} 34. b4 {[%clk 0:00:26]}  Rd7 {[%clk 0:01:06]} 35. Kg1 {[%clk 0:00:26]}  Bc2 {[%clk 0:01:05]} 36. Kf2 {[%clk 0:00:26]}  Ba4 {[%clk 0:01:04]} 37. Re4 {[%clk 0:00:25]}  Bc6 {[%clk 0:01:03]} 38. Rd4 {[%clk 0:00:23]}  Re7 {[%clk 0:01:03]} 39. Rd6 {[%clk 0:00:22]}  h5 {[%clk 0:01:02]} 40. h4 {[%clk 0:00:20]}  Kg6 {[%clk 0:01:01]} 41. Rd3 {[%clk 0:00:19]}  Re4 {[%clk 0:01:00]} 42. g3 {[%clk 0:00:17]}  Re6 {[%clk 0:00:58]} 43. Re3 {[%clk 0:00:13]}  Rd6 {[%clk 0:00:58]} 44. Re7 {[%clk 0:00:13]}  Rd1 {[%clk 0:00:56]} 45. Ke2 {[%clk 0:00:09]}  Rg1 {[%clk 0:00:55]} 46. Re3 {[%clk 0:00:09]}  Rg2+ {[%clk 0:00:54]} 47. Kd3 {[%clk 0:00:09]}  Kf5 {[%clk 0:00:52]} 48. Kc4 {[%clk 0:00:07]}  Kg4 {[%clk 0:00:52]} 49. Re7 {[%clk 0:00:07]}  g6 {[%clk 0:00:42]} 50. Bxf6 {[%clk 0:00:05]}  Rxg3 {[%clk 0:00:39]} 51. Re5 {[%clk 0:00:05]}  Kh3 {[%clk 0:00:36]} 52. Bg5 {[%clk 0:00:04]}  Rg4+ {[%clk 0:00:35]} 53. Kc5 {[%clk 0:00:03]}  Rxh4 {[%clk 0:00:34]} 54. Bxh4 {[%clk 0:00:03]}  Kxh4 {[%clk 0:00:34]} 55. Re7 {[%clk 0:00:02]}  g5 {[%clk 0:00:34]} 56. Kd4 {[%clk 0:00:02]}  g4 {[%clk 0:00:33]} 57. Ke3 {[%clk 0:00:02]}  Kg3 {[%clk 0:00:34]} 0-1


[Site "https://www.chess.com"]

[Event "Titled Tuesday Blitz July 6 2021"]
[White "Sychev, Klementy"]
[Black "Orozbaev, Eldiar"]
[WhiteFideId "4114060"]
[BlackFideId "13802240"]
[WhiteElo "2615"]
[BlackElo "1911"]
[Result "0-1"]
[Round "05"]
[TimeControl "180+1"]
[Date "2021.07.06"]
[WhiteClock "0:00:01"]
[BlackClock "0:00:15"]

1. e4 {[%clk 0:02:59]}  e6 {[%clk 0:03:00]} 2. d4 {[%clk 0:02:56]}  d5 {[%clk 0:03:00]} 3. Nc3 {[%clk 0:02:53]}  Nf6 {[%clk 0:03:00]} 4. e5 {[%clk 0:02:42]}  Nfd7 {[%clk 0:03:00]} 5. f4 {[%clk 0:02:42]}  c5 {[%clk 0:03:00]} 6. Nf3 {[%clk 0:02:42]}  Nc6 {[%clk 0:03:00]} 7. Be3 {[%clk 0:02:43]}  Qb6 {[%clk 0:03:01]} 8. Na4 {[%clk 0:02:40]}  Qa5+ {[%clk 0:03:01]} 9. c3 {[%clk 0:02:39]}  cxd4 {[%clk 0:03:01]} 10. b4 {[%clk 0:02:39]}  Nxb4 {[%clk 0:03:02]} 11. cxb4 {[%clk 0:02:40]}  Bxb4+ {[%clk 0:03:01]} 12. Bd2 {[%clk 0:02:40]}  Bxd2+ {[%clk 0:03:02]} 13. Nxd2 {[%clk 0:02:40]}  b6 {[%clk 0:03:03]} 14. Qb3 {[%clk 0:02:03]}  Ba6 {[%clk 0:02:38]} 15. Bxa6 {[%clk 0:01:57]}  Qxa6 {[%clk 0:02:39]} 16. Qb4 {[%clk 0:01:47]}  Qd3 {[%clk 0:02:30]} 17. Qb3 {[%clk 0:01:37]}  Qa6 {[%clk 0:02:26]} 18. Qb4 {[%clk 0:01:23]}  Qd3 {[%clk 0:02:24]} 19. Rf1 {[%clk 0:01:22]}  a5 {[%clk 0:02:08]} 20. Qb3 {[%clk 0:01:17]}  Qa6 {[%clk 0:02:06]} 21. Rb1 {[%clk 0:01:12]}  O-O {[%clk 0:02:00]} 22. Qb5 {[%clk 0:01:12]}  Qa7 {[%clk 0:01:48]} 23. Nf3 {[%clk 0:01:11]}  Rfc8 {[%clk 0:01:45]} 24. Kd2 {[%clk 0:00:56]}  Rc4 {[%clk 0:01:28]} 25. Rfc1 {[%clk 0:00:55]}  Rac8 {[%clk 0:01:27]} 26. Rxc4 {[%clk 0:00:54]}  dxc4 {[%clk 0:01:22]} 27. Nxd4 {[%clk 0:00:53]}  Qc7 {[%clk 0:01:17]} 28. Kc3 {[%clk 0:00:46]}  Qb7 {[%clk 0:01:02]} 29. Nxb6 {[%clk 0:00:28]}  Nxb6 {[%clk 0:01:00]} 30. Qxb6 {[%clk 0:00:29]}  Qxg2 {[%clk 0:01:00]} 31. Qb7 {[%clk 0:00:28]}  Qh3+ {[%clk 0:00:54]} 32. Nf3 {[%clk 0:00:25]}  Rd8 {[%clk 0:00:53]} 33. Rd1 {[%clk 0:00:25]}  Rf8 {[%clk 0:00:45]} 34. Rd7 {[%clk 0:00:19]}  Qf1 {[%clk 0:00:41]} 35. Qe4 {[%clk 0:00:15]}  Qc1+ {[%clk 0:00:38]} 36. Kd4 {[%clk 0:00:03]}  Qd1+ {[%clk 0:00:38]} 37. Ke3 {[%clk 0:00:03]}  Qxd7 {[%clk 0:00:38]} 38. Qxc4 {[%clk 0:00:01]}  Rc8 {[%clk 0:00:38]} 39. Qb3 {[%clk 0:00:02]}  a4 {[%clk 0:00:37]} 40. Qb4 {[%clk 0:00:02]}  h6 {[%clk 0:00:37]} 41. h4 {[%clk 0:00:02]}  Qd1 {[%clk 0:00:20]} 42. h5 {[%clk 0:00:01]}  Qc1+ {[%clk 0:00:15]} 0-1


[Site "https://www.chess.com"]

[Event "Titled Tuesday Blitz July 6 2021"]
[White "TanitoluwaAps116"]
[Black "Leiva, Gianmarco"]
[BlackFideId "3804399"]
[WhiteElo "2383"]
[BlackElo "2365"]
[Result "0-1"]
[Round "05"]
[TimeControl "180+1"]
[Date "2021.07.06"]
[WhiteClock "0:00:20"]
[BlackClock "0:00:35"]

1. d4 {[%clk 0:03:00]}  Nf6 {[%clk 0:02:59]} 2. Bf4 {[%clk 0:02:59]}  d5 {[%clk 0:02:54]} 3. Nf3 {[%clk 0:02:59]}  e6 {[%clk 0:02:54]} 4. e3 {[%clk 0:02:57]}  Be7 {[%clk 0:02:54]} 5. Nbd2 {[%clk 0:02:57]}  O-O {[%clk 0:02:54]} 6. Bd3 {[%clk 0:02:55]}  b6 {[%clk 0:02:54]} 7. c3 {[%clk 0:02:55]}  Ba6 {[%clk 0:02:54]} 8. Bxa6 {[%clk 0:02:55]}  Nxa6 {[%clk 0:02:54]} 9. O-O {[%clk 0:02:55]}  Qc8 {[%clk 0:02:54]} 10. Re1 {[%clk 0:02:54]}  Qb7 {[%clk 0:02:54]} 11. e4 {[%clk 0:02:55]}  Nxe4 {[%clk 0:02:34]} 12. Nxe4 {[%clk 0:02:54]}  dxe4 {[%clk 0:02:35]} 13. Nd2 {[%clk 0:02:53]}  c5 {[%clk 0:02:24]} 14. Nxe4 {[%clk 0:02:48]}  cxd4 {[%clk 0:02:24]} 15. Qxd4 {[%clk 0:02:49]}  Rfd8 {[%clk 0:02:23]} 16. Qe3 {[%clk 0:02:44]}  Nc5 {[%clk 0:02:23]} 17. Nxc5 {[%clk 0:02:31]}  Bxc5 {[%clk 0:02:24]} 18. Qg3 {[%clk 0:02:32]}  Qd5 {[%clk 0:02:23]} 19. h3 {[%clk 0:02:30]}  Qd3 {[%clk 0:02:22]} 20. Qg4 {[%clk 0:02:23]}  Qc2 {[%clk 0:02:19]} 21. Be5 {[%clk 0:02:05]}  Qxf2+ {[%clk 0:01:34]} 22. Kh1 {[%clk 0:01:59]}  Bf8 {[%clk 0:01:34]} 23. Rf1 {[%clk 0:01:51]}  Qxb2 {[%clk 0:01:34]} 24. Qf3 {[%clk 0:01:38]}  f6 {[%clk 0:01:29]} 25. Bxf6 {[%clk 0:01:34]}  gxf6 {[%clk 0:01:30]} 26. Qxf6 {[%clk 0:01:34]}  Bg7 {[%clk 0:01:26]} 27. Qxe6+ {[%clk 0:01:30]}  Kh8 {[%clk 0:01:26]} 28. Rad1 {[%clk 0:01:19]}  Qxc3 {[%clk 0:01:18]} 29. Rd7 {[%clk 0:01:10]}  Rxd7 {[%clk 0:01:10]} 30. Qxd7 {[%clk 0:01:11]}  a5 {[%clk 0:00:51]} 31. Qg4 {[%clk 0:01:00]}  Re8 {[%clk 0:00:48]} 32. Kh2 {[%clk 0:00:33]}  Qd4 {[%clk 0:00:37]} 33. Qh5 {[%clk 0:00:26]}  Qe5+ {[%clk 0:00:36]} 34. Qxe5 {[%clk 0:00:22]}  Bxe5+ {[%clk 0:00:35]} 35. g3 {[%clk 0:00:21]}  Bd4 {[%clk 0:00:35]} 36. Re1 {[%clk 0:00:20]}  Rxe1 {[%clk 0:00:35]} 0-1


[Site "https://www.chess.com"]

[Event "Titled Tuesday Blitz July 6 2021"]
[White "Travadon, Loic"]
[Black "Abdurakhmonov, Mukhammadali"]
[WhiteFideId "26092131"]
[BlackFideId "14207346"]
[WhiteElo "2095"]
[BlackElo "2266"]
[Result "0-1"]
[Round "05"]
[TimeControl "180+1"]
[Date "2021.07.06"]
[WhiteClock "0:01:36"]
[BlackClock "0:00:32"]

1. e4 {[%clk 0:03:00]}  e5 {[%clk 0:02:59]} 2. Nf3 {[%clk 0:02:57]}  Nc6 {[%clk 0:02:58]} 3. Bb5 {[%clk 0:02:57]}  a6 {[%clk 0:02:57]} 4. Bf1 {[%clk 0:02:57]}  Nf6 {[%clk 0:02:56]} 5. Nc3 {[%clk 0:02:57]}  d5 {[%clk 0:02:52]} 6. exd5 {[%clk 0:02:57]}  Nxd5 {[%clk 0:02:53]} 7. Bc4 {[%clk 0:02:56]}  Be6 {[%clk 0:02:49]} 8. Bxd5 {[%clk 0:02:56]}  Bxd5 {[%clk 0:02:49]} 9. O-O {[%clk 0:02:56]}  Be7 {[%clk 0:02:44]} 10. Re1 {[%clk 0:02:55]}  f6 {[%clk 0:02:44]} 11. d4 {[%clk 0:02:54]}  Bxf3 {[%clk 0:02:29]} 12. Qxf3 {[%clk 0:02:53]}  Qxd4 {[%clk 0:02:29]} 13. Be3 {[%clk 0:02:52]}  Qc4 {[%clk 0:02:06]} 14. Nd5 {[%clk 0:02:50]}  O-O {[%clk 0:01:43]} 15. b3 {[%clk 0:02:48]}  Qh4 {[%clk 0:01:36]} 16. Nxc7 {[%clk 0:02:48]}  Rac8 {[%clk 0:01:33]} 17. Ne6 {[%clk 0:02:47]}  Rf7 {[%clk 0:01:30]} 18. Rad1 {[%clk 0:02:44]}  Bb4 {[%clk 0:01:30]} 19. Re2 {[%clk 0:02:42]}  Re8 {[%clk 0:01:23]} 20. Nc5 {[%clk 0:02:38]}  f5 {[%clk 0:01:16]} 21. Qd5 {[%clk 0:02:36]}  Rd8 {[%clk 0:01:11]} 22. c4 {[%clk 0:02:22]}  Bxc5 {[%clk 0:00:53]} 23. Bxc5 {[%clk 0:02:18]}  Rxd5 {[%clk 0:00:53]} 24. cxd5 {[%clk 0:02:18]}  Rd7 {[%clk 0:00:53]} 25. Red2 {[%clk 0:02:15]}  Ne7 {[%clk 0:00:49]} 26. f3 {[%clk 0:02:12]}  Qf6 {[%clk 0:00:48]} 27. h3 {[%clk 0:02:08]}  Ng6 {[%clk 0:00:47]} 28. d6 {[%clk 0:02:06]}  Nf4 {[%clk 0:00:42]} 29. Be3 {[%clk 0:02:05]}  Ne6 {[%clk 0:00:37]} 30. Rc2 {[%clk 0:02:04]}  h6 {[%clk 0:00:35]} 31. Rc8+ {[%clk 0:02:03]}  Kh7 {[%clk 0:00:36]} 32. Bb6 {[%clk 0:02:01]}  Nf4 {[%clk 0:00:32]} 33. Bc5 {[%clk 0:01:48]}  Qg5 {[%clk 0:00:32]} 34. g4 {[%clk 0:01:45]}  Nxh3+ {[%clk 0:00:31]} 35. Kh2 {[%clk 0:01:45]}  fxg4 {[%clk 0:00:31]} 36. fxg4 {[%clk 0:01:43]}  Qxg4 {[%clk 0:00:32]} 37. Rf1 {[%clk 0:01:42]}  Nf4 {[%clk 0:00:32]} 38. Rf2 {[%clk 0:01:39]}  Rxd6 {[%clk 0:00:31]} 39. Bxd6 {[%clk 0:01:35]}  Qh3+ {[%clk 0:00:31]} 40. Kg1 {[%clk 0:01:35]}  Qxc8 {[%clk 0:00:32]} 41. Bxe5 {[%clk 0:01:35]}  Nh3+ {[%clk 0:00:31]} 42. Kg2 {[%clk 0:01:36]}  Nxf2 {[%clk 0:00:32]} 0-1


[Site "https://www.chess.com"]

[Event "Titled Tuesday Blitz July 6 2021"]
[White "Visakh N R"]
[Black "Jakubowski, Krzysztof"]
[WhiteFideId "25012223"]
[BlackFideId "1112848"]
[WhiteElo "2428"]
[BlackElo "2462"]
[Result "0-1"]
[Round "05"]
[TimeControl "180+1"]
[Date "2021.07.06"]
[WhiteClock "0:00:15"]
[BlackClock "0:00:05"]

1. e4 {[%clk 0:02:38]}  c5 {[%clk 0:02:57]} 2. Nf3 {[%clk 0:02:38]}  e6 {[%clk 0:02:57]} 3. d4 {[%clk 0:02:37]}  cxd4 {[%clk 0:02:58]} 4. Nxd4 {[%clk 0:02:38]}  Nc6 {[%clk 0:02:57]} 5. Nc3 {[%clk 0:02:37]}  Qc7 {[%clk 0:02:57]} 6. Nb3 {[%clk 0:02:33]}  a6 {[%clk 0:02:55]} 7. Be2 {[%clk 0:02:33]}  b5 {[%clk 0:02:52]} 8. a3 {[%clk 0:02:32]}  Nf6 {[%clk 0:02:50]} 9. O-O {[%clk 0:02:32]}  Be7 {[%clk 0:02:48]} 10. f4 {[%clk 0:02:30]}  d6 {[%clk 0:02:47]} 11. Be3 {[%clk 0:02:31]}  O-O {[%clk 0:02:46]} 12. Bd3 {[%clk 0:02:30]}  Nd7 {[%clk 0:02:32]} 13. g4 {[%clk 0:02:20]}  Nb6 {[%clk 0:02:27]} 14. Qe2 {[%clk 0:02:10]}  Re8 {[%clk 0:02:22]} 15. Rae1 {[%clk 0:02:06]}  Bf8 {[%clk 0:02:20]} 16. g5 {[%clk 0:02:05]}  Na4 {[%clk 0:02:17]} 17. Nxa4 {[%clk 0:02:00]}  bxa4 {[%clk 0:02:16]} 18. Nd4 {[%clk 0:02:01]}  Rb8 {[%clk 0:02:10]} 19. Nxc6 {[%clk 0:01:58]}  Qxc6 {[%clk 0:02:10]} 20. c3 {[%clk 0:01:59]}  Qb7 {[%clk 0:02:00]} 21. Rf2 {[%clk 0:01:57]}  Bd7 {[%clk 0:02:00]} 22. h4 {[%clk 0:01:55]}  Bb5 {[%clk 0:01:55]} 23. h5 {[%clk 0:01:52]}  g6 {[%clk 0:01:40]} 24. Rh2 {[%clk 0:01:28]}  Bxd3 {[%clk 0:01:36]} 25. Qxd3 {[%clk 0:01:27]}  Qb5 {[%clk 0:01:37]} 26. Qd1 {[%clk 0:01:20]}  Qc6 {[%clk 0:01:33]} 27. Qf3 {[%clk 0:01:18]}  Bg7 {[%clk 0:01:28]} 28. Rf1 {[%clk 0:01:09]}  Re7 {[%clk 0:01:29]} 29. f5 {[%clk 0:00:56]}  exf5 {[%clk 0:01:24]} 30. exf5 {[%clk 0:00:57]}  Qxf3 {[%clk 0:01:21]} 31. Rxf3 {[%clk 0:00:58]}  gxf5 {[%clk 0:01:17]} 32. Rd2 {[%clk 0:00:57]}  Reb7 {[%clk 0:01:08]} 33. Rff2 {[%clk 0:00:55]}  Be5 {[%clk 0:01:07]} 34. Kg2 {[%clk 0:00:55]}  Kg7 {[%clk 0:01:02]} 35. Kf3 {[%clk 0:00:54]}  f6 {[%clk 0:00:57]} 36. Rg2 {[%clk 0:00:43]}  fxg5 {[%clk 0:00:55]} 37. Rxg5+ {[%clk 0:00:43]}  Kf6 {[%clk 0:00:55]} 38. Rgg2 {[%clk 0:00:43]}  Rg7 {[%clk 0:00:40]} 39. Rxg7 {[%clk 0:00:42]}  Kxg7 {[%clk 0:00:41]} 40. Bg5 {[%clk 0:00:36]}  Kf7 {[%clk 0:00:38]} 41. Be3 {[%clk 0:00:32]}  Ke6 {[%clk 0:00:33]} 42. Rg2 {[%clk 0:00:31]}  Kd5 {[%clk 0:00:26]} 43. Bf4 {[%clk 0:00:30]}  Rb7 {[%clk 0:00:23]} 44. Re2 {[%clk 0:00:25]}  Rg7 {[%clk 0:00:20]} 45. Rd2+ {[%clk 0:00:25]}  Ke6 {[%clk 0:00:20]} 46. Bxe5 {[%clk 0:00:18]}  dxe5 {[%clk 0:00:19]} 47. Rd8 {[%clk 0:00:18]}  e4+ {[%clk 0:00:19]} 48. Ke3 {[%clk 0:00:19]}  Rg3+ {[%clk 0:00:19]} 49. Ke2 {[%clk 0:00:19]}  Ke5 {[%clk 0:00:17]} 50. c4 {[%clk 0:00:19]}  Rb3 {[%clk 0:00:16]} 51. Rh8 {[%clk 0:00:17]}  Rxb2+ {[%clk 0:00:16]} 52. Kd1 {[%clk 0:00:17]}  f4 {[%clk 0:00:12]} 53. c5 {[%clk 0:00:17]}  f3 {[%clk 0:00:12]} 54. c6 {[%clk 0:00:16]}  f2 {[%clk 0:00:12]} 55. Rf8 {[%clk 0:00:16]}  e3 {[%clk 0:00:07]} 56. Kc1 {[%clk 0:00:16]}  Rb5 {[%clk 0:00:05]} 57. c7 {[%clk 0:00:15]}  Rc5+ {[%clk 0:00:06]} 58. Kd1 {[%clk 0:00:16]}  Rxc7 {[%clk 0:00:04]} 59. Ke2 {[%clk 0:00:16]}  Rc3 {[%clk 0:00:04]} 60. h6 {[%clk 0:00:15]}  Rxa3 {[%clk 0:00:04]} 61. Rf7 {[%clk 0:00:14]}  Ke4 {[%clk 0:00:05]} 62. Re7+ {[%clk 0:00:14]}  Kf4 {[%clk 0:00:05]} 63. Rf7+ {[%clk 0:00:14]}  Kg5 {[%clk 0:00:05]} 64. Rxh7 {[%clk 0:00:15]}  Ra2+ {[%clk 0:00:06]} 65. Kxe3 {[%clk 0:00:15]}  f1=Q {[%clk 0:00:05]} 0-1


[Site "https://www.chess.com"]

[Event "Titled Tuesday Blitz July 6 2021"]
[White "Vlachos, Anatole"]
[Black "Gunina, Valentina"]
[WhiteFideId "26093189"]
[BlackFideId "4167570"]
[WhiteElo "2350"]
[BlackElo "2399"]
[Result "1-0"]
[Round "05"]
[TimeControl "180+1"]
[Date "2021.07.06"]
[WhiteClock "0:00:16"]
[BlackClock "0:00:19"]

1. Nf3 {[%clk 0:03:00]}  d5 {[%clk 0:02:59]} 2. g3 {[%clk 0:02:16]}  c6 {[%clk 0:02:59]} 3. Bg2 {[%clk 0:02:16]}  Bg4 {[%clk 0:03:00]} 4. O-O {[%clk 0:02:16]}  Nd7 {[%clk 0:03:00]} 5. h3 {[%clk 0:02:17]}  Bh5 {[%clk 0:02:58]} 6. d3 {[%clk 0:02:17]}  e5 {[%clk 0:02:58]} 7. Nbd2 {[%clk 0:02:16]}  Ngf6 {[%clk 0:02:58]} 8. e4 {[%clk 0:02:16]}  Bc5 {[%clk 0:02:57]} 9. Qe1 {[%clk 0:02:16]}  O-O {[%clk 0:02:53]} 10. Nh4 {[%clk 0:02:13]}  Re8 {[%clk 0:02:51]} 11. Nf5 {[%clk 0:02:10]}  a5 {[%clk 0:02:51]} 12. a4 {[%clk 0:02:10]}  Nf8 {[%clk 0:02:50]} 13. Nb3 {[%clk 0:02:01]}  Bb6 {[%clk 0:02:50]} 14. Kh2 {[%clk 0:01:50]}  Bg6 {[%clk 0:02:48]} 15. Nh4 {[%clk 0:01:48]}  Bc7 {[%clk 0:02:46]} 16. Nxg6 {[%clk 0:01:46]}  hxg6 {[%clk 0:02:46]} 17. Bd2 {[%clk 0:01:42]}  Ne6 {[%clk 0:02:44]} 18. Qe2 {[%clk 0:01:43]}  Nd4 {[%clk 0:02:23]} 19. Nxd4 {[%clk 0:01:39]}  exd4 {[%clk 0:02:24]} 20. f4 {[%clk 0:01:30]}  dxe4 {[%clk 0:02:23]} 21. dxe4 {[%clk 0:01:31]}  Qd7 {[%clk 0:02:15]} 22. e5 {[%clk 0:01:29]}  Nd5 {[%clk 0:02:14]} 23. Rae1 {[%clk 0:01:24]}  Rad8 {[%clk 0:02:07]} 24. Qc4 {[%clk 0:01:18]}  Bb6 {[%clk 0:01:54]} 25. Bxd5 {[%clk 0:01:01]}  Qxd5 {[%clk 0:01:53]} 26. Qxd5 {[%clk 0:01:01]}  Rxd5 {[%clk 0:01:53]} 27. Re4 {[%clk 0:00:58]}  Rc5 {[%clk 0:01:52]} 28. Rc1 {[%clk 0:00:56]}  Rd8 {[%clk 0:01:51]} 29. Kg2 {[%clk 0:00:56]}  Bc7 {[%clk 0:01:44]} 30. Kf3 {[%clk 0:00:54]}  b5 {[%clk 0:01:35]} 31. axb5 {[%clk 0:00:50]}  Rxb5 {[%clk 0:01:35]} 32. b3 {[%clk 0:00:50]}  d3 {[%clk 0:01:35]} 33. Re3 {[%clk 0:00:43]}  Bb6 {[%clk 0:01:22]} 34. Rxd3 {[%clk 0:00:43]}  Rxd3+ {[%clk 0:01:23]} 35. cxd3 {[%clk 0:00:44]}  Rxb3 {[%clk 0:01:23]} 36. Ke4 {[%clk 0:00:33]}  a4 {[%clk 0:01:23]} 37. Rxc6 {[%clk 0:00:32]}  a3 {[%clk 0:01:24]} 38. Rc8+ {[%clk 0:00:28]}  Kh7 {[%clk 0:01:23]} 39. Ra8 {[%clk 0:00:29]}  f5+ {[%clk 0:01:20]} 40. exf6 {[%clk 0:00:25]}  gxf6 {[%clk 0:01:20]} 41. g4 {[%clk 0:00:17]}  f5+ {[%clk 0:00:59]} 42. gxf5 {[%clk 0:00:18]}  gxf5+ {[%clk 0:00:59]} 43. Kxf5 {[%clk 0:00:19]}  Rxd3 {[%clk 0:00:59]} 44. Bb4 {[%clk 0:00:18]}  Rd5+ {[%clk 0:00:52]} 45. Ke6 {[%clk 0:00:18]}  Rd4 {[%clk 0:00:52]} 46. Bd6 {[%clk 0:00:16]}  Re4+ {[%clk 0:00:39]} 47. Be5 {[%clk 0:00:16]}  Re3 {[%clk 0:00:19]} 48. Kf5 {[%clk 0:00:16]} 1-0


[Site "https://www.chess.com"]